Cogmind - Beta 16 @@@ ROGUE MODE // 2025.11.26 @ 17:34:10 Player: Skysub Result: Self-destructed Performance ------------- Evolutions (5) 2500 Regions Visited (7) 1400 Robots Destroyed (4) 20 Value Destroyed (118) 118 Prototype IDs (1) 20 Alien Tech Used (0) 0 Bonus (2487) 2487 TOTAL SCORE: 6545 Bonus ------- Pacifist 1987 Entered DSFs 500 Cogmind --------- Core Integrity 817/1000 Matter 85/300 Energy 216/220 System Corruption 0% Temperature Cool (10) Movement Flying (23) Location -5/Factory Parts ------- > --- POWER (2) -------- Light Nuclear Core Light Nuclear Core > --- PROPULSION (6) --- VTOL Module VTOL Module VTOL Module VTOL Module VTOL Module > --- UTILITY (7) ------ Advanced Cooling System Enhanced Optical Array Improved Sensor Array Improved Signal Interpreter Terrain Scan Processor Propulsion Shielding > --- WEAPON (2) ------- (None) > --- INVENTORY (5) ---- Light Fission Core Autogun KE Penetrator Peak State ------------ > --- POWER ------------ Light Nuclear Core > --- PROPULSION ------- Gravmag System Linear Gravjet VTOL Module > --- UTILITY ---------- Advanced Terrain Scanner Terrain Scan Processor Improved Reaction Control System Improved Propulsion Shielding > --- WEAPON ----------- Greatsword > --- INVENTORY -------- (None) [Rating: 38] Favorites ----------- Power Light Nuclear Core Power Core Light Nuclear Core Propulsion VTOL Module Hover Unit Gravmag System Flight Unit VTOL Module Utility Terrain Scan Processor Device Advanced Terrain Scanner Processor Terrain Scan Processor Hackware Hacking Suite Protection Improved Propulsion Shielding Weapon Greatsword Ballistic Gun Autogun Impact Weapon Thunder Hammer Slashing Weapon Greatsword Build | -11 -10 -9 -8 -7 -7 -6 -5 ------- Run | Yrd Mat Mat Mat Fac DSF Fac Fac Slots Evolved 10 | . . 2 2 2 . 2 2 Power 1 | . . . . 1 . . . Propulsion 4 | . . 1 1 . . 1 1 Utility 5 | . . 1 1 1 . 1 1 Weapon . | . . . . . . . . Parts Attached 33 | . 1 1 4 2 5 4 16 Power 3 | . . . . 1 . . 2 Engine . | . . . . . . . . Core 3 | . . . . 1 . . 2 Reactor . | . . . . . . . . Propulsion 11 | . . . 1 1 3 . 6 Treads . | . . . . . . . . Leg . | . . . . . . . . Wheel . | . . . . . . . . Hover 4 | . . . . . 3 . 1 Flight 7 | . . . 1 1 . . 5 Utility 15 | . 1 1 3 . 2 3 5 Device 5 | . . . 1 . . 2 2 Storage . | . . . . . . . . Processor 3 | . . . . . . 1 2 Hackware 2 | . . 1 1 . . . . Protection 5 | . 1 . 1 . 2 . 1 Artifact . | . . . . . . . . Weapon 4 | . . . . . . 1 3 Energy Gun . | . . . . . . . . Energy Cannon . | . . . . . . . . Ballistic Gun 2 | . . . . . . . 2 Ballistic Cannon . | . . . . . . . . Launcher . | . . . . . . . . Special Weapon . | . . . . . . . . Impact Weapon 1 | . . . . . . . 1 Slashing Weapon 1 | . . . . . . 1 . Piercing Weapon . | . . . . . . . . Special Melee Weapon . | . . . . . . . . Unidentified Prototypes 1 | . . . . . . . 1 Parts Lost 15 | . . . 3 . 1 2 9 Power 1 | . . . . . . . 1 Propulsion 6 | . . . 1 . . 1 4 Utility 7 | . . . 2 . 1 1 3 Weapon 1 | . . . . . . . 1 Highest Loss Streak 9 | . . . 3 . 1 2 9 To Critical Strikes . | . . . . . . . . Average Backups 3 | 1 2 5 4 5 4 4 2 Power 1 | 1 2 2 2 2 2 1 . Propulsion . | . . . . . . . . Utility 1 | . . 2 1 . . 1 . Weapon 1 | . . 1 1 2 1 1 1 Tool/Special . | . . . . . . . . Unused Backups 5 | . . . . . 3 1 1 Power 3 | . . . . . 1 1 1 Propulsion . | . . . . . . . . Utility . | . . . . . . . . Weapon 2 | . . . . . 2 . . Tool/Special . | . . . . . . . . Average Slot Usage (%) 32 | . 1 12 33 16 28 45 43 Core 1 | . . . . . . . 4 Hover 6 | . . . . . 2 20 5 Flight 6 | . . . 6 5 7 6 13 Device 3 | . . . 7 . . 5 5 Processor 3 | . . . . . . 4 7 Hackware 3 | . . 4 15 7 5 . . Protection 5 | . 1 7 5 3 11 8 2 Peak Build Rating 38 | . 1 4 12 9 20 32 38 Average Rating 15 | . . 2 9 5 11 23 24 On Entrance 6 | . . 1 3 3 6 20 18 Avg Prop Armor Cover (%) 27 | . . . . . 23 28 24 Naked Turns 71 | . 71 . . . . . . Heaviest Build 18 | . 3 3 4 3 4 6 18 Greatest Support 20 | 3 3 3 4 4 9 17 20 Greatest Overweight (x) 2 | . . . . . . 1 2 Average Overweight (x) . | . . . . . . . . Largest Inventory Capacity 5 | 5 5 5 5 5 5 5 5 Average Capacity 5 | 5 5 5 5 5 5 5 5 Most Carried 5 | 2 5 5 5 5 5 5 5 Average Carried 3 | 1 2 4 4 4 4 4 2 Final Capacity 5 | 5 5 5 5 5 5 5 5 Final Carried 5 | 2 5 5 5 5 5 5 3 Class Distribution -------------------- 75% | Mutant 14% | Scavenger-Scout 10% | Hacker-Mutant Dominant Class ---------------- Mutant | -10/Materials Mutant | -9/Materials Hacker-Mutant | -8/Materials Mutant | -7/Factory Mutant | -7/DSF Mutant | -6/Factory Scavenger-Scout | -5/Factory Resources | -11 -10 -9 -8 -7 -7 -6 -5 ----------- Run | Yrd Mat Mat Mat Fac DSF Fac Fac Matter Collected 330 | 200 . . . . . . 130 Remotely . | . . . . . . . . Salvage Created 102 | . . . . . . . 102 Parts 8 | . . . . . . . 8 Haulers Intercepted . | . . . . . . . . Recyclers Shooed . | . . . . . . . . Parts Field Recycled . | . . . . . . . . Retrieved Matter . | . . . . . . . . Parts Self-Destructed . | . . . . . . . . Prevented . | . . . . . . . . Parts Restored . | . . . . . . . . Kills | -11 -10 -9 -8 -7 -7 -6 -5 ------- Run | Yrd Mat Mat Mat Fac DSF Fac Fac Combat Hostiles Destroyed 4 | . . . . . . . 4 Melee 3 | . . . . . . . 3 Guns 1 | . . . . . . . 1 Classes Destroyed 1 | . . . . . . . 1 Swarmer 4 | . . . . . . . 4 Best Kill Streak 4 | . . . . . . . 4 Combat Bots Only 4 | . . . . . . . 4 Max Kills in Single Turn 1 | . . . . . . . 1 Gunslinging . | . . . . . . . . Exploded . | . . . . . . . . Melee 1 | . . . . . . . 1 Uniques/NPCs Destroyed . | . . . . . . . . Combat | -11 -10 -9 -8 -7 -7 -6 -5 -------- Run | Yrd Mat Mat Mat Fac DSF Fac Fac Hostile Shots Fired 250 | . 11 66 40 . 19 30 84 Missed 115 | . 3 26 19 . 11 21 35 Hits 135 | . 8 40 21 . 8 9 49 Melee 12 | . . . 4 . 7 1 . Projectile 123 | . 8 40 17 . 1 8 49 AOE 6 | . . . 1 . 3 2 . Critical Strikes 8 | . . . 4 . 3 . 1 Actively Blocked 1 | . . . . . 1 . . Damage Taken 1861 | . 104 366 277 . 191 207 716 Core 898 | . 104 350 130 . 98 33 183 Absorbed by Shields 32 | . . . . . 32 . . Redirected to Shielding 217 | . . . . . 48 64 105 Core Remaining (%) 71 | 100 58 12 76 . 86 96 . Volleys Fired 3 | . . . . . . . 3 Largest 2 | . . . . . . . 2 Hottest 56 | . . . . . . . 56 Shots Fired 6 | . . . . . . . 6 Gun 6 | . . . . . . . 6 Cannon . | . . . . . . . . Launcher . | . . . . . . . . Special . | . . . . . . . . Kinetic 6 | . . . . . . . 6 Thermal . | . . . . . . . . Explosive . | . . . . . . . . Electromagnetic . | . . . . . . . . Robot Hit Streak 2 | . . . . . . . 2 Robot Miss Streak 2 | . . . . . . . 2 Penetration Max . | . . . . . . . . Secondary Targets . | . . . . . . . . Shots Hit Robots 9 | . . . . . . . 9 Core Hits 5 | . . 1 . . . . 4 Critical Kills . | . . . . . . . . Critical Parts Destroyed . | . . . . . . . . Critical Strikes . | . . . . . . . . Melee Attacks 13 | . . . . . . 1 12 Impact . | . . . . . . . . Slashing 13 | . . . . . . 1 12 Piercing . | . . . . . . . . Sneak Attacks . | . . . . . . . . Combat Hostiles . | . . . . . . . . Follow-up Attacks . | . . . . . . . . Damage Inflicted 329 | . . 3 . . . . 326 Guns 75 | . . . . . . . 75 Cannons . | . . . . . . . . Explosions . | . . . . . . . . Melee 251 | . . . . . . . 251 Ramming 3 | . . 3 . . . . . Kinetic 75 | . . . . . . . 75 Thermal . | . . . . . . . . Explosive . | . . . . . . . . Electromagnetic . | . . . . . . . . Impact . | . . . . . . . . Slashing 251 | . . . . . . . 251 Piercing . | . . . . . . . . Highest Corruption 1 | . . . . . 1 . . Average Corruption 1 | . . . . . 1 . . Corruption Purged . | . . . . . . . . Corruption Blocked . | . . . . . . . . Overload Shots . | . . . . . . . . Overflow Damage 11 | . . . . . . . 11 Projectiles . | . . . . . . . . Explosions . | . . . . . . . . Melee 11 | . . . . . . . 11 Knockbacks . | . . . . . . . . Impact . | . . . . . . . . Kinetic . | . . . . . . . . Secondary . | . . . . . . . . Self-Inflicted Damage 1 | . . 1 . . . . . Shots . | . . . . . . . . Rammed 1 | . . 1 . . . . . Targets Rammed 1 | . . 1 . . . . . Kicked . | . . . . . . . . Crushed . | . . . . . . . . Highest Temperature 4 | . . . . . . . 4 Average Temperature 3 | . . . . . . . 3 Received Heat Transfer 129 | . 57 36 . . . 18 18 Siege Activations . | . . . . . . . . Martial Activations . | . . . . . . . . Shielding Activations . | . . . . . . . . Robots Disrupted . | . . . . . . . . Combat Hostiles . | . . . . . . . . Robots Corrupted . | . . . . . . . . Combat Hostiles . | . . . . . . . . Parts Fried . | . . . . . . . . Impact Corruptions . | . . . . . . . . Robots Melted . | . . . . . . . . Combat Hostiles . | . . . . . . . . Parts Melted . | . . . . . . . . Heat Transferred . | . . . . . . . . Parts Sabotaged . | . . . . . . . . Parts Stolen . | . . . . . . . . Parts Stripped . | . . . . . . . . Power Chain Reactions . | . . . . . . . . Alert | -11 -10 -9 -8 -7 -7 -6 -5 ------- Run | Yrd Mat Mat Mat Fac DSF Fac Fac Maximum Alert Level . | . . . . . . . . Low Security (%) 100 | 100 100 100 100 100 100 100 100 Level 1 . | . . . . . . . . Level 2 . | . . . . . . . . Level 3 . | . . . . . . . . Level 4 . | . . . . . . . . Level 5 . | . . . . . . . . High Security . | . . . . . . . . Max Security . | . . . . . . . . Peak Influence 124 | . 30 12 37 5 53 95 124 Initial 32 | . . 12 . . 3 27 32 Average 23 | . 9 5 9 1 15 25 43 Influence Increases 596 | . 49 8 57 15 60 136 271 Destroy 0b10 Robot/C 80 | . . . . . . . 80 Destroy Leader 10 | . . . . . . . 10 Successful Hack 68 | . 19 8 12 . . . 29 Disable Machine 15 | . . . . . . . 15 Destroy Structure 3 | . . . . . . 1 2 Partial Spotted 15 | . . . . 15 . . . Lose Combat Pursuer 405 | . 30 . 45 . 60 135 135 Influence Decreases 482 | . 19 38 57 10 12 123 223 Entered New Map 80 | . . 18 . . 2 26 34 Time Decay 244 | . 10 20 27 10 . 77 100 Lost Part 149 | . . . 30 . 10 20 89 Lost Ally 9 | . 9 . . . . . . Squads Dispatched 9 | . 1 1 1 . 1 2 3 Investigation 4 | . 1 . . . . 1 2 Extermination 1 | . . . . . . . 1 Reinforcement 4 | . . 1 1 . 1 1 . Assault . | . . . . . . . . Garrison . | . . . . . . . . Intercept . | . . . . . . . . Searches Triggered . | . . . . . . . . Construction Impeded . | . . . . . . . . Haulers Reinforced . | . . . . . . . . Active Scanning Responses . | . . . . . . . . Cargo Convoy Interrupts . | . . . . . . . . Stealth | -11 -10 -9 -8 -7 -7 -6 -5 --------- Run | Yrd Mat Mat Mat Fac DSF Fac Fac Distress Signals 2 | . . . 1 . . 1 . Communications Jammed . | . . . . . . . . Distress Signals . | . . . . . . . . Times Spotted 70 | . 5 14 14 . 7 15 15 Peak Tracking Total 12 | . 3 12 11 . 5 8 7 Tactical Retreats 7 | . 1 . 1 . 1 2 2 Traps | -11 -10 -9 -8 -7 -7 -6 -5 ------- Run | Yrd Mat Mat Mat Fac DSF Fac Fac Traps Triggered 2 | . . . . . 1 1 . Indirectly . | . . . . . . . . Trap Hack Attempts . | . . . . . . . . Triggered . | . . . . . . . . Disarmed . | . . . . . . . . Reprogrammed . | . . . . . . . . Reused . | . . . . . . . . Traps Extracted . | . . . . . . . . Installed . | . . . . . . . . Triggered . | . . . . . . . . Machines | -11 -10 -9 -8 -7 -7 -6 -5 ---------- Run | Yrd Mat Mat Mat Fac DSF Fac Fac Machines Disabled 1 | . . . . . . . 1 Max in Single Turn 1 | . . . . . . . 1 Machines Repaired . | . . . . . . . . Machines Dismantled . | . . . . . . . . Machines Sabotaged . | . . . . . . . . Overloaded Fab Kills . | . . . . . . . . Hacking | -11 -10 -9 -8 -7 -7 -6 -5 --------- Run | Yrd Mat Mat Mat Fac DSF Fac Fac Machines Accessed 13 | . 2 2 2 1 . 1 5 Terminals 10 | . 2 2 1 1 . 1 3 Fabricators 1 | . . . . . . . 1 Repair Stations . | . . . . . . . . Recycling Units 2 | . . . 1 . . . 1 Scanalyzers . | . . . . . . . . Garrison Access . | . . . . . . . . Total Hacks 35 | . 10 4 4 1 . 2 14 Successful 15 | . 3 3 3 1 . . 5 Failed 20 | . 7 1 1 . . 2 9 Catastrophic 7 | . 2 1 1 . . . 3 Database Lockouts . | . . . . . . . . Manual 27 | . 10 4 3 . . 2 8 Terminals 31 | . 10 4 3 1 . 2 11 Fabricators 2 | . . . . . . . 2 Repair Stations . | . . . . . . . . Recycling Units 2 | . . . 1 . . . 1 Scanalyzers . | . . . . . . . . Garrison Access . | . . . . . . . . Terminal Hacks 6 | . . 2 1 1 . . 2 Open DSF 2 | . . . . 1 . . 1 Level Access Points 2 | . . 1 1 . . . . Emergency Access Points 1 | . . . . . . . 1 Zone Layout 1 | . . 1 . . . . . Fabricator Hacks . | . . . . . . . . Repair Station Hacks . | . . . . . . . . Recycling Unit Hacks 2 | . . . 1 . . . 1 Report Inventory 2 | . . . 1 . . . 1 Scanalyzer . | . . . . . . . . Garrison Access Hacks . | . . . . . . . . Unauthorized Hacks 7 | . 3 1 1 . . . 2 Terminals 7 | . 3 1 1 . . . 2 Assimilate 1 | . 1 . . . . . . Botnet 6 | . 2 1 1 . . . 2 Fabricators . | . . . . . . . . Repair Stations . | . . . . . . . . Recycling Units . | . . . . . . . . Scanalyzers . | . . . . . . . . Garrison Access . | . . . . . . . . Data Cores Recovered . | . . . . . . . . Used . | . . . . . . . . Hacking Detections 11 | . 2 1 1 1 . 1 5 Full Trace Events 5 | . 2 . . . . 1 2 Feedback Events . | . . . . . . . . Feedback Blocked . | . . . . . . . . Robot Schematics Acquired . | . . . . . . . . Robots Built . | . . . . . . . . Authchips . | . . . . . . . . Time . | . . . . . . . . Total Robot Build Rating . | . . . . . . . . Part Schematics Acquired . | . . . . . . . . Parts Built . | . . . . . . . . Authchips . | . . . . . . . . Time . | . . . . . . . . Total Part Build Rating . | . . . . . . . . Part Studies Acquired . | . . . . . . . . Parts Repaired . | . . . . . . . . Time . | . . . . . . . . Parts Recycled . | . . . . . . . . Recycled Matter . | . . . . . . . . Retrieved Matter . | . . . . . . . . Retrieved Components . | . . . . . . . . Parts Scanalyzed . | . . . . . . . . Part Schematics Acquired . | . . . . . . . . Parts Damaged . | . . . . . . . . Bothacking | -11 -10 -9 -8 -7 -7 -6 -5 ------------ Run | Yrd Mat Mat Mat Fac DSF Fac Fac Used RIF Installer . | . . . . . . . . Robots Hacked . | . . . . . . . . Non-combat . | . . . . . . . . Combat . | . . . . . . . . Robot Hacks Applied . | . . . . . . . . Relay Couplers Released . | . . . . . . . . Fabnet Peak Effective % . | . . . . . . . . Robots Rewired . | . . . . . . . . Allies Hacked . | . . . . . . . . Hacks Repelled . | . . . . . . . . Allies | -11 -10 -9 -8 -7 -7 -6 -5 -------- Run | Yrd Mat Mat Mat Fac DSF Fac Fac Total Allies 1 | . 1 . . . . . . Largest Group 1 | . 1 . . . . . . Highest-Rated Group 10 | . 10 . . . . . . Highest-Rated Ally 10 | . 10 . . . . . . Total Orders . | . . . . . . . . Ally Attacks . | . . . . . . . . Total Damage . | . . . . . . . . Kills . | . . . . . . . . Allies Corrupted . | . . . . . . . . Allies Melted . | . . . . . . . . Intel | -11 -10 -9 -8 -7 -7 -6 -5 ------- Run | Yrd Mat Mat Mat Fac DSF Fac Fac Active Infowar (turns) 226 | . . . . . . 74 152 Optics 39 | . . . . . . . 39 Sensors 70 | . . . . . . . 70 Terrain 156 | . . . . . . 74 82 Robot Analysis Total . | . . . . . . . . Derelict Logs Recovered . | . . . . . . . . Drone Launches . | . . . . . . . . Drone Recoveries . | . . . . . . . . Exploration | -11 -10 -9 -8 -7 -7 -6 -5 ------------- Run | Yrd Mat Mat Mat Fac DSF Fac Fac Turns Passed 750 | 16 79 62 80 56 41 191 225 Spaces Moved 1642 | 27 142 114 195 143 60 465 496 Core 321 | 27 142 114 32 5 . . 1 Treads . | . . . . . . . . Legs . | . . . . . . . . Wheels . | . . . . . . . . Hover 26 | . . . . . 1 2 23 Flight 1295 | . . . 163 138 59 463 472 Fastest Speed 23 | 50 50 50 35 35 35 35 23 Average Speed 37 | 50 50 50 37 35 35 38 28 Slowest Speed 150 | 50 50 50 50 50 60 115 150 Overloaded Moves . | . . . . . . . . Propulsion Burnouts . | . . . . . . . . Robots Hopped 28 | . . . 6 3 2 15 2 Potential Cave-ins . | . . . . . . . . Cave-ins Triggered . | . . . . . . . . Exploration Rate (%) 26 | 3 42 22 25 8 70 20 22 Regions Visited 7 Branch Regions . Pre-discovered Areas . | . . . . . . . . Known Exits Taken 3 | . . 1 1 1 . . . Unknown Exits Taken 3 | 1 1 . . . . 1 . Scrap Searched . | . . . . . . . . Spaces Dug 2 | . . . . . . 1 1 Terrain Destroyed 2 | . . . . . . 1 1 Melee 2 | . . . . . . 1 1 Projectile . | . . . . . . . . AOE . | . . . . . . . . Terrain Rammed . | . . . . . . . . Walls Destroyed . | . . . . . . . . Machines Disabled . | . . . . . . . . Actions | -11 -10 -9 -8 -7 -7 -6 -5 --------- Run | Yrd Mat Mat Mat Fac DSF Fac Fac Total 1708 | 28 148 118 193 144 77 460 540 Wait 10 | . 3 2 . 1 . . 4 Move 1584 | 26 141 113 183 136 55 438 492 Hop 23 | . . . 5 3 2 11 2 Pick Up 9 | 2 3 . 1 . 2 . 1 Fast Attach 30 | . 1 . 3 2 4 4 16 Attach 10 | . . 1 1 1 1 1 5 Detach 10 | . . 1 . 1 1 3 4 Swap . | . . . . . . . . Drop 6 | . . . . . 3 2 1 Fire 3 | . . . . . . . 3 Melee 13 | . . . . . . 1 12 Ram 1 | . . 1 . . . . . Kick . | . . . . . . . . Crush . | . . . . . . . . Escape Stasis 9 | . . . . . 9 . . Rewire . | . . . . . . . . Trap . | . . . . . . . . Miscellaneous . | . . . . . . . . Route ------- -11/Scrapyard -10/Materials (discovered 2 exits: *Mat / [*Min]) -9/Materials (discovered 3 exits: *Mat x3) -8/Materials (discovered 3 exits: *Fac x3) -7/Factory -7/DSF -6/Factory (discovered 2 exits: *Fac x2) -5/Factory (discovered 1 exit: *Upp) History --------- Turn | Location | Event 8 | -11/Scrapyard | Discovered new exit (range 14) 17 | -11/Scrapyard | Entered Materials 66 | -10/Materials | Discovered new exit (range 8) 84 | -10/Materials | Discovered new exit (range 15) 96 | -10/Materials | Entered another Materials area 96 | -9/Materials | Evolved 2 slots: Propulsion x1, Utility x1 123 | -9/Materials | Identified exit to Materials 139 | -9/Materials | Core integrity fell below 50% 150 | -9/Materials | Core integrity fell below 20% 158 | -9/Materials | Entered another Materials area 158 | -8/Materials | Evolved 2 slots: Propulsion x1, Utility x1 196 | -8/Materials | Identified exit to Factory 238 | -8/Materials | Entered Factory 238 | -7/Factory | Evolved 2 slots: Power x1, Utility x1 266 | -7/Factory | Lost 3 parts (1n2u) 294 | -7/Factory | Identified exit to DSF 294 | -7/Factory | Entered DSF 316 | -7/DSF | Additional patrols routed to DSF 325 | -7/DSF | Discovered new exit (range 15) 335 | -7/DSF | Entered Factory 335 | -6/Factory | Evolved 2 slots: Propulsion x1, Utility x1 416 | -6/Factory | Discovered new exit (range 4) 509 | -6/Factory | Discovered new exit (range 16) 526 | -6/Factory | Entered another Factory area 526 | -5/Factory | Evolved 2 slots: Propulsion x1, Utility x1 543 | -5/Factory | Build established: Mutant 564 | -5/Factory | Spotted B-75 Beast 681 | -5/Factory | Lost 9 parts (1p4n3u1w) 724 | -5/Factory | Discovered new exit (range 20) 728 | -5/Factory | Identified exit to Upper Caves 751 | -5/Factory | Self-destructed Last Messages --------------- Trojan loaded successfully. Testing... Terminal linked with 1 system. Awaiting botnet instructions. >>Access(Emergency) Found 4 emergency access doors: (151,83) (160,82) (164,82) (135,90) Map updated. 00749_ Connecting with Fabricator... 00749_ ALERT: Suspicious activity at Fabricator F006. Dispatching Investigation squad. 00751_ Connecting with Recycling Unit... >>Recycling(Report) Matter reserves: 0 Inventory: KE Penetrator (54%) Imp. Plasma Cutter (64%) Map ----- +----------------------------------------------------+ | # """ """?????????? | | ###### * # #??????? | | ## ####### #? #??????? | | """#####+####?????# #? ] !#??????? | | T"#?? ???????###########?? #??????? | | """# """ #??????????????????####+######??????? | | # """ #???????????????????????????????????? | | "" # """ #???????????????????????????????????? | | "" #] #???????????????????????????????????? | | "" # """ #???????????????????????????????????? | | # """ +???+???????????????????????????????? | | "" + """ #???????????????????????????????????? | | "" # #???????????????????????????????????? | | "" #+###???##????????????????g#?????????????????? | | # ???????????????ss??????? ###?# ###?????????? | | "" # ?????????????s??s???s?##gg #?????????? | | "" # ????????????????###+## ??????????? | | "" # #???????????????# ???????????? | | ? # #???????????????# ????????????? | | #??## #???????????????# """ """????????????? | | ##### ####????????????# """"" """"" #?????????? | | # ## ########## """"" """"" k#?????????? | | # ## s #?????????? | | + ????s """ ???????????? | | # #???ss????? """"" ???????????? | | ##+## #??????##+####### @ """"" ???????????? | | #??????# # "Y" u ??????? | | ## #??????#""" """ + """ ??? | | ?# ####???#"F" """ ####### ???? | | ?# #???#" """ #???????#+## ???? | | ?# #???#""" #????????????? ? ????? | | ?# #####""" """ #??????????????? ??????? | | ?# + """ #?????????????????? ???????? | | ?#######+##### """ #??????????????????????????? | | ?????# ## #??????????????????????????? | | ?????#[ """ ###########??????????????????????????? | | ?????# """ #????????????????????????????????????? | | ?????# """ #????????????????????????????????????? | | ?????# #????????????????????????????????????? | | ?????# #????????????????????????????????????? | | ?????########????????????????????????????????????? | | ?????????????????????????????????????????????????? | | ?????????????????????????????????????????????????? | | ?????????????????????????????????????????????????? | | ?????????????????????????????????????????????????? | | ?????????????????????????????????????????????????? | | ?????????????????????????????????????????????????? | | ?????????????????????????????????????????????????? | | ?????????????????????????????????????????????????? | | ?????????????????????????????????????????????????? | +----------------------------------------------------+ Best States ------------- Heat Dissipation 71 Energy Generation 23 Energy Capacity 220 Matter Stores 300 Matter Capacity 300 Sight Range 22 Robot Scan Range 15 Terrain Scan Range 20 Terrain Scan Density 85 Armor Coverage 150 Propulsion Shielding 66 Evasion (%) 73 Offensive Hacking 10 Defensive Hacking 10 Item Schematics ----------------- None Robot Schematics ------------------ None Fabricated ------------ Nothing Repaired ---------- Nothing Studied --------- None Alien Tech Used ----------------- None Achievements -------------- None Challenges ------------ None Game ------ Seed NetworkThrusterFlamer Manual? 0 Play Time 00:20:03 Cumulative 288.7 hours Start 2025.11.26 @ 17:18:52 End 2025.11.26 @ 17:34:10 Sessions 1 Manual Loads 0 Difficulty Rogue Special Mode None Game No. 325 Rogue 325 Adventurer 0 Explorer 0 Win Type - Total 17 Types 10/0/3/1/1/0/0/1/0/1 Lore% 77 Gallery% 75 Achievement% 57 Wizard Run 0 Options --------- Layout 1 ASCII 0 Keyboard 1 Movement Numpad Keybinds 0 Fullscreen 2 Font 32/SmallcapsGlow Map View 77x35 Zoom Use 0% Tactical HUD 1 Map Filters NONE Filters NONE Steam 1 RUN: 2d5352c0-ddb7-4edb-ae5d-5bed8fa3ecfc